fUST/lending_fUST_20251013
["ID","MTS","AMOUNT","RATE_DAILY","PERIOD"]
[391082600,1760308232565,-300.0,0.00023799,2]
[391082602,1760308232574,-16231.77253313,0.000238,2]
[391082603,1760308232583,-417.15472785,0.00023815,2]
[391082605,1760308232592,-160.0,0.00023817,2]
[391082608,1760308232602,-417.15472785,0.00023817,2]
[391082610,1760308232611,-160.0,0.00023817,2]
[391082612,1760308232619,-160.0,0.00023818,2]
[391082614,1760308232629,-160.0,0.00023818,2]
[391082615,1760308232638,-402.2877588,0.00023818,2]
[391082616,1760308232647,-377.9,0.00023911,3]
[391082617,1760308232655,-424.213,0.0002392,5]
[391082618,1760308232664,-184.71834504,0.0002392,5]
[391082619,1760308232673,-343.43045539,0.0002392,2]
[391082620,1760308232683,-37378.83497932,0.00023921,2]
[391082621,1760308232694,-442.0666617,0.00023921,2]
[391082661,1760308238481,-135834.42968666,0.00023921,2]
[391082663,1760308238495,-1714.7654976,0.00024,2]
[391082665,1760308238505,-163.68869731,0.00024,2]
[391082667,1760308238514,-459.92594446,0.00024,2]
[391082669,1760308238524,-42280.43554632,0.00024042,2]
[391082671,1760308238534,-240.0,0.00024077,2]
[391082673,1760308238542,-128079.96054072,0.00024142,2]
[391082675,1760308238552,-179.67658215,0.00024255,2]
[391082677,1760308238562,-300.0,0.00024399,20]
[391082679,1760308238571,-300.0,0.00024399,20]
[391082681,1760308238580,-300.0,0.00024399,20]
[391082683,1760308238589,-300.0,0.00024399,20]
[391082685,1760308238598,-300.0,0.00024399,20]
[391082687,1760308238608,-300.0,0.00024399,20]
[391082689,1760308238617,-300.0,0.00024399,20]
[391082691,1760308238626,-300.0,0.00024399,20]
[391082693,1760308238635,-300.0,0.00024399,20]
[391082695,1760308238644,-300.0,0.00024399,20]
[391082697,1760308238653,-300.0,0.00024399,20]
[391082699,1760308238662,-300.0,0.00024399,20]
[391082701,1760308238671,-300.0,0.00024399,20]
[391082703,1760308238680,-300.0,0.00024399,20]
[391082705,1760308238689,-300.0,0.00024399,20]
[391082707,1760308238699,-600.0,0.00024399,20]
[391082709,1760308238708,-262.5,0.00024677,2]
[391082711,1760308238717,-29285.82,0.000249,7]
[391082713,1760308238727,-2088.78532203,0.000249,7]
[391082715,1760308238736,-500430.603869,0.000249,2]
[391082716,1760308238747,-531.25,0.0002493,2]
[391082717,1760308238755,-729.91872895,0.00025049,2]
[391082718,1760308238765,-285.0,0.00025277,2]
[391082719,1760308238774,-420.0,0.00025814,2]
[391082720,1760308238784,-307.5,0.00025877,2]
[391082721,1760308238794,-1483.0,0.00025933,2]
[391082722,1760308238805,-4197.0,0.00026355,2]
[391082723,1760308238814,-166810.20129,0.00026372,2]
[391082724,1760308238823,-729.91872895,0.00026383,2]
[391082725,1760308238832,-330.0,0.00026477,2]
[391082726,1760308238843,-2160.0,0.0002672,2]
[391082727,1760308238854,-630.0,0.0002672,2]
[391082728,1760308238864,-411.0,0.0002672,2]
[391082729,1760308238873,-415.782,0.0002672,2]
[391082730,1760308238882,-160.0,0.00026767,2]
[391082731,1760308238892,-720.0,0.00026839,30]
[391082732,1760308238902,-168.0,0.00026956,2]
[391082733,1760308238912,-796.88,0.00027008,2]
[391082734,1760308238921,-352.5,0.00027077,2]
[391082735,1760308238931,-168.0,0.00027086,2]
[391082736,1760308238941,-800.0,0.00027253,2]
[391082737,1760308238951,-260.0,0.00027315,2]
[391082738,1760308238961,-154.70417693,0.00027397,2]
[391082739,1760308238970,-168.0,0.0002741,2]
[391082740,1760308238979,-5052.33,0.000275,2]
[391082741,1760308238988,-499.99999901,0.000275,10]
[391082742,1760308238998,-168.0,0.00027503,2]
[391082743,1760308239008,-1880.88,0.000276,2]
[391082744,1760308239017,-168.0,0.00027636,2]
[391082745,1760308239027,-375.0,0.00027677,2]
[391082746,1760308239038,-729.91872895,0.00027716,2]
[391082747,1760308239047,-168.0,0.00027755,2]
[391082748,1760308239056,-360.0,0.00027863,2]
[391082749,1760308239066,-1000.0,0.00028,2]
[391082750,1760308239075,-587.0,0.00028,2]
[391082751,1760308239084,-397.5,0.00028277,2]
[391082752,1760308239094,-153.0,0.0002829,2]
[391082753,1760308239104,-153.0,0.0002829,2]
[391082754,1760308239113,-153.0,0.0002829,2]
[391082755,1760308239122,-153.0,0.0002829,2]
[391082756,1760308239131,-153.0,0.00028291,2]
[391082757,1760308239140,-153.0,0.00028291,2]
[391082758,1760308239148,-153.0,0.00028291,2]
[391082759,1760308239158,-168.0,0.00028313,2]
[391082760,1760308239167,-800.0,0.00028349,7]
[391082761,1760308239177,-460.0,0.00028411,2]
[391082762,1760308239186,-420.0,0.00028877,2]
[391082763,1760308239195,-560.0,0.00028958,2]
[391082764,1760308239204,-499.58232019,0.00028976,2]
[391082765,1760308239213,-168.0,0.00028981,2]
[391082766,1760308239222,-729.91872895,0.0002905,2]
[391082767,1760308239231,-168.0,0.00029054,2]
[391082768,1760308239241,-1062.5,0.00029085,2]
[391082769,1760308239250,-168.0,0.00029107,2]
[391082770,1760308239260,-18305.40826848,0.0002911,2]
[391082771,1760308239270,-800.0,0.00029171,7]
[391082772,1760308239279,-168.0,0.00029208,2]
[391082773,1760308239287,-168.0,0.00029353,2]
[391082774,1760308239297,-442.5,0.00029477,2]
[391082775,1760308239306,-793.11238745,0.00029506,2]
[391082776,1760308239316,-864.0,0.00029523,30]
[391082777,1760308239325,-1418.26506824,0.00029616,2]
[391082778,1760308239336,-2160.0,0.0002972,2]
[391082779,1760308239346,-630.0,0.0002972,2]
[391082780,1760308239355,-411.0,0.0002972,2]
[391082781,1760308239365,-411.0,0.0002972,2]
[391082782,1760308239376,-800.0,0.00029993,7]
[391082783,1760308239385,-204.453,0.0003,2]
[391082784,1760308239395,-21965.14354,0.0003,5]
[391082785,1760308239404,-196.3126631,0.00030077,2]
[391082786,1760308239413,-162.08,0.00030136,120]
[391082787,1760308239424,-659.76,0.00030157,35]
[391082788,1760308239433,-5052.33,0.000302,2]
[391082789,1760308239443,-162.08,0.00030273,120]
[391082790,1760308239452,-823.0,0.0003037,2]
[391082791,1760308239461,-500.0,0.00030376,30]
[391082792,1760308239470,-500.0,0.00030376,30]
[391082793,1760308239479,-500.0,0.00030376,30]
[391082794,1760308239491,-500.0,0.00030376,30]
[391082795,1760308239500,-500.0,0.00030376,30]
[391082796,1760308239510,-500.0,0.00030376,30]
[391082797,1760308239519,-500.0,0.00030376,30]
[391082798,1760308239531,-500.0,0.00030376,30]
[391082799,1760308239540,-500.0,0.00030376,30]
[391082800,1760308239548,-500.0,0.00030376,30]
[391082801,1760308239557,-500.0,0.00030376,30]
[391082802,1760308239568,-500.0,0.00030376,30]
[391082803,1760308239578,-2088.78532203,0.0003038,30]
[391082804,1760308239587,-35974.89943024,0.00030383,7]
[391082805,1760308239599,-367942.68336976,0.00030383,7]
[391082806,1760308239608,-729.91872895,0.00030383,2]
[391082807,1760308239616,-3673.70356842,0.00030383,2]
[391082808,1760308239626,-2088.78532203,0.0003039,3]
[391082809,1760308239635,-2088.78532203,0.0003039,7]
[391082810,1760308239648,-2000.0,0.000304,3]
[391082811,1760308239657,-162.08,0.0003041,120]
[391082812,1760308239666,-500.0,0.00030473,5]
[391082813,1760308239675,-24731.62647941,0.00030483,2]
[391082814,1760308239687,-1152.9,0.00030483,2]
[391082819,1760308240336,-345.60334028,0.00030483,2]
[391082822,1760308243625,-201660.46340525,0.00023821,2]
[391082847,1760308246432,-64575.81997699,0.00023821,2]
[391082848,1760308246443,-54328.51581124,0.00030483,2]
[391082849,1760308246452,-225.65879777,0.00030483,15]
[391082850,1760308246462,-300.0,0.00030483,2]
[391082851,1760308246471,-3886.43754036,0.00030483,2]
[391082852,1760308246481,-810.86557436,0.00030483,2]
[391082853,1760308246498,-258.5718964,0.00030483,2]
[391082854,1760308246508,-240.47522176,0.00030483,10]
[391082855,1760308246517,-297.3039223,0.00030483,2]
[391082856,1760308246526,-50014.06714199,0.00030483,5]
[391082857,1760308246536,-327.4781439,0.00030483,2]
[391082858,1760308246546,-292.2664292,0.00030483,2]
[391082859,1760308246555,-194.88821304,0.00030483,12]
[391082860,1760308246566,-638.15155954,0.00030483,2]
[391082861,1760308246575,-1363.78619887,0.00030483,2]
[391082862,1760308246586,-156.8436131,0.00030483,2]
[391082863,1760308246596,-6301.69755382,0.00030483,2]
[391082864,1760308246606,-157.84435524,0.00030483,2]
[391082865,1760308246615,-1095.91719052,0.00030483,10]
[391082866,1760308246625,-8831.85231967,0.00030483,2]
[391082867,1760308246634,-1719.31880236,0.00030483,2]
[391082868,1760308246642,-3740.52665009,0.00030483,7]
[391082869,1760308246652,-3588.23037018,0.00030483,7]
[391082870,1760308246661,-2079.10683591,0.00030483,2]
[391082871,1760308246670,-1500.0,0.00030483,3]
[391082872,1760308246680,-200.0,0.00030483,10]
[391082873,1760308246689,-508.27888964,0.00030483,2]
[391082874,1760308246698,-10591.47435582,0.00030483,7]
[391082875,1760308246707,-1002.07621727,0.00030483,2]
[391082876,1760308246717,-179.54387013,0.00030483,2]
[391082877,1760308246726,-468.49298619,0.00030483,2]
[391082878,1760308246735,-498.0,0.00030483,7]
[391082879,1760308246749,-26001.91618497,0.00030483,6]
[391082880,1760308246759,-30484.26176871,0.00030483,2]
[391082881,1760308246768,-189.42790762,0.00030483,2]
[391082882,1760308246777,-1398.83798975,0.00030483,2]
[391082883,1760308246785,-5903.69029634,0.00030483,2]
[391082884,1760308246794,-10695.55549585,0.00030483,2]
[391082885,1760308246803,-652.08100563,0.00030483,2]
[391082886,1760308246812,-1541.14353266,0.00030483,14]
[391082887,1760308246821,-2920.0,0.00030483,2]
[391082888,1760308246830,-154.35871147,0.00030483,7]
[391082889,1760308246840,-813.19183711,0.00030483,15]
[391082890,1760308246849,-10502.43376757,0.00030483,2]
[391082891,1760308246859,-1444.62601141,0.00030483,2]
[391082892,1760308246868,-385.37524886,0.00030483,2]
[391082893,1760308246877,-201.62024257,0.00030483,2]
[391082894,1760308246887,-1521.18595615,0.00030483,15]
[391082895,1760308246896,-300.0,0.00030483,30]
[391082896,1760308246906,-3151.23072548,0.00030483,2]
[391082897,1760308246915,-365.12727261,0.00030483,2]
[391082898,1760308246925,-2517.14733677,0.00030483,7]
[391082899,1760308246934,-100376.87993748,0.00030483,2]
[391082900,1760308246943,-166.79670328,0.00030483,2]
[391082901,1760308246953,-150.54502711,0.00030483,2]
[391082902,1760308246962,-258.88777035,0.00030483,2]
[391082903,1760308246971,-176.52182274,0.00030483,7]
[391082904,1760308246981,-3770.77210498,0.00030483,2]
[391082905,1760308246991,-158.0,0.00030483,10]
[391082906,1760308247003,-500.0,0.00030483,30]
[391082907,1760308247013,-2000.0,0.00030483,30]
[391082908,1760308247023,-2000.0,0.00030483,30]
[391082909,1760308247032,-1099.0,0.00030483,30]
[391082910,1760308247042,-615.8,0.00030483,3]
[391082911,1760308247052,-615.8,0.00030483,3]
[391082912,1760308247062,-615.8,0.00030483,3]
[391082913,1760308247071,-615.8,0.00030483,3]
[391082914,1760308247080,-615.8,0.00030483,3]
[391082915,1760308247090,-615.8,0.00030483,3]
[391082916,1760308247101,-615.8,0.00030483,3]
[391082917,1760308247110,-615.8,0.00030483,3]
[391082918,1760308247120,-615.8,0.00030483,3]
[391082919,1760308247129,-615.8,0.00030483,3]
[391082920,1760308247139,-615.8,0.00030483,3]
[391082921,1760308247148,-615.8,0.00030483,3]
[391082922,1760308247158,-615.8,0.00030483,3]
[391082923,1760308247169,-615.8,0.00030483,3]
[391082924,1760308247178,-615.8,0.00030483,3]
[391082925,1760308247188,-615.8,0.00030483,3]
[391082926,1760308247198,-615.8,0.00030483,3]
[391082927,1760308247208,-615.8,0.00030483,3]
[391082928,1760308247218,-615.8,0.00030483,3]
[391082929,1760308247227,-615.8,0.00030483,3]
[391082930,1760308247237,-615.8,0.00030483,3]
[391082931,1760308247249,-615.8,0.00030483,3]
[391082932,1760308247259,-615.8,0.00030483,3]
[391082933,1760308247270,-616.02766034,0.00030483,3]
[391082934,1760308247279,-500.0,0.00030483,3]
[391082935,1760308247289,-500.0,0.00030483,3]
[391082936,1760308247298,-500.0,0.00030483,3]
[391082937,1760308247308,-611.34,0.00030483,3]
[391082938,1760308247317,-500.0,0.00030483,7]
[391082939,1760308247327,-500.0,0.00030483,7]
[391082940,1760308247336,-500.0,0.00030483,7]
[391082941,1760308247346,-500.0,0.00030483,30]
[391082942,1760308247355,-500.0,0.00030483,30]
[391082943,1760308247365,-500.0,0.00030483,30]
[391082944,1760308247375,-500.0,0.00030483,30]
[391082945,1760308247384,-500.0,0.00030483,30]
[391082946,1760308247393,-500.0,0.00030483,30]
[391082947,1760308247406,-500.0,0.00030483,30]
[391082948,1760308247415,-500.0,0.00030483,30]
[391082949,1760308247424,-500.0,0.00030483,30]
[391082950,1760308247433,-500.0,0.00030483,30]
[391082951,1760308247443,-350.4,0.00030483,30]
[391082952,1760308247453,-500.0,0.00030483,30]
[391082953,1760308247464,-500.0,0.00030483,30]
[391082954,1760308247625,-500.0,0.00030483,30]
[391082955,1760308247636,-500.0,0.00030483,30]
[391082956,1760308247646,-500.0,0.00030483,30]
[391082957,1760308247655,-500.0,0.00030483,30]
[391082958,1760308247667,-500.0,0.00030483,30]
[391082959,1760308247677,-500.0,0.00030483,30]
[391082960,1760308247688,-500.0,0.00030483,30]
[391082961,1760308247699,-500.0,0.00030483,30]
[391082962,1760308247710,-500.0,0.00030483,30]
[391082963,1760308247721,-500.0,0.00030483,30]
[391082964,1760308247732,-500.0,0.00030483,30]
[391082965,1760308247745,-644.04992653,0.00030483,30]
[391082966,1760308247758,-500.0,0.00030483,20]
[391082967,1760308247771,-396.57031641,0.00030483,20]
[391082968,1760308247782,-500.0,0.00030483,30]
[391082969,1760308247794,-500.0,0.00030483,30]
[391082970,1760308247805,-500.0,0.00030483,30]
[391082971,1760308247816,-500.0,0.00030483,30]
[391082972,1760308247827,-1430850.03853361,0.00030483,20]
[391082973,1760308263713,238.64,0.00020874,2]
[391082974,1760308342661,235.6,0.00019792,2]
[391082977,1760308414749,161.95246124,0.00018,2]
[391082978,1760308421380,232.6,0.0001963,2]
[391082979,1760308658925,229.64,0.00019651,2]
[391082983,1760308734949,226.72,0.00019642,2]
[391082984,1760308814435,223.84,0.00019641,2]
[391082985,1760308893903,220.99,0.00019646,2]
[391082986,1760308973816,218.17,0.00019706,2]
[391082987,1760308976926,3000.0,0.00027397,120]
[391082988,1760308988226,1159.37,0.00027397,120]
[391082989,1760309020351,850.0,0.00027397,120]
[391082992,1760309074836,174.0,0.00020971,2]
[391083023,1760309200911,886.76490991,0.00020971,2]
[391083024,1760309306945,151.0,0.000181,2]
[391083025,1760309312893,824.305197,0.00013699,2]
[391083026,1760309313106,824.305197,0.00020187,2]
[391083045,1760309432479,-500.0,0.000212,2]
[391083047,1760309432488,-419.31226135,0.00021398,3]
[391083049,1760309432497,-173.69267451,0.00021498,2]
[391083051,1760309432507,-215.4,0.00022661,2]
[391083053,1760309432517,-329.72567451,0.00024255,2]
[391083055,1760309432526,-191.503622,0.00024615,2]
[391083057,1760309432540,-402.2877588,0.00024615,2]
[391083059,1760309432549,-309.1679016,0.00024658,2]
[391083061,1760309432558,-430.8,0.00024721,2]
[391083063,1760309432567,-339.37,0.00025205,9]
[391083065,1760309432576,-158.24,0.00026271,2]
[391083067,1760309432585,-824.305197,0.00026676,2]
[391083069,1760309432594,-300.0,0.00026767,2]
[391083070,1760309432603,-85.12332449,0.00026768,2]
[391083191,1760309438498,-288.00484811,0.00024636,2]
[391083192,1760309438632,-1800.78047392,0.00024636,2]
[391083193,1760309438641,-895.87667551,0.00026768,2]
[391083194,1760309438650,-630.0,0.00026768,2]
[391083195,1760309438659,-2160.0,0.00026768,2]
[391083196,1760309438668,-250.0,0.00026768,2]
[391083197,1760309438677,-212.785,0.00026768,2]
[391083198,1760309438686,-8010.0,0.00026768,2]
[391083199,1760309438695,-500.0,0.00027253,2]
[391083200,1760309438704,-300.0,0.00027385,30]
[391083201,1760309438713,-300.0,0.00027385,30]
[391083202,1760309438723,-300.0,0.00027385,30]
[391083203,1760309438732,-300.0,0.00027385,30]
[391083204,1760309438741,-300.0,0.00027385,30]
[391083205,1760309438751,-300.0,0.00027385,30]
[391083206,1760309438760,-300.0,0.00027385,30]
[391083207,1760309438769,-300.0,0.00027385,30]
[391083208,1760309438778,-300.0,0.00027385,30]
[391083209,1760309438788,-300.0,0.00027385,30]
[391083210,1760309438796,-300.0,0.00027385,30]
[391083211,1760309438805,-300.0,0.00027385,30]
[391083212,1760309438814,-300.0,0.00027385,30]
[391083213,1760309438823,-300.0,0.00027385,30]
[391083214,1760309438832,-300.0,0.00027385,30]
[391083215,1760309438841,-1825.0,0.00027397,49]
[391083216,1760309438851,-600.0,0.00027932,30]
[391083217,1760309438860,-156.363531,0.000282,3]
[391083218,1760309438874,-153.0,0.00028342,2]
[391083219,1760309438882,-153.0,0.00028342,2]
[391083220,1760309438891,-153.0,0.00028342,2]
[391083221,1760309438900,-153.0,0.00028342,2]
[391083222,1760309438911,-153.0,0.00028343,2]
[391083223,1760309438919,-153.0,0.00028343,2]
[391083224,1760309438929,-153.0,0.00028347,2]
[391083225,1760309438938,-153.0,0.00028347,2]
[391083226,1760309438949,-500.0,0.00028349,7]
[391083227,1760309438958,-861.59,0.00028842,2]
[391083228,1760309438967,-420.0,0.00028945,2]
[391083229,1760309438975,-1016.76,0.00029,2]
[391083230,1760309438984,-500.0,0.00029171,7]
[391083231,1760309438993,-1016.76,0.00029174,2]
[391083232,1760309439002,-1016.76,0.00029348,2]
[391083233,1760309439011,-1063.69880118,0.00029616,2]
[391083234,1760309439020,-981.0,0.00029768,2]
[391083235,1760309439029,-630.0,0.00029768,2]
[391083236,1760309439038,-2160.0,0.00029768,2]
[391083237,1760309439047,-150.0,0.00029768,2]
[391083238,1760309439056,-150.0,0.00029768,2]
[391083239,1760309439065,-500.0,0.00029993,7]
[391083240,1760309439074,-4677.74769408,0.00030016,2]
[391083241,1760309439087,-240.40131878,0.00030115,2]
[391083242,1760309439096,-267223.122548,0.00030116,2]
[391083243,1760309439106,-98044.93674813,0.00030126,2]
[391083244,1760309439118,-3000.0,0.00030126,2]
[391083250,1760309440552,-3180.52312726,0.00030126,2]
[391083557,1760309587002,1500.0,0.00015,2]
[391083558,1760309671104,151.0,0.000181,2]
[391083559,1760309672079,151.0,0.00018242,2]
[391083560,1760309675824,151.0,0.00018385,2]
[391083561,1760309676847,151.0,0.00018528,2]
[391083562,1760309677781,151.0,0.00018671,2]
[391083563,1760309678770,151.0,0.00018814,2]
[391083564,1760309680091,151.0,0.000191,2]
[391083565,1760309743758,151.0,0.000181,2]
[391083577,1760310148395,202.32,0.00020103,2]
[391083578,1760310304943,199.75,0.00019664,2]
[391083579,1760310380876,197.21,0.00019636,2]
[391083581,1760310460483,194.7,0.00019641,2]
[391083582,1760310540583,192.22,0.00019648,2]
[391083583,1760310620810,189.77,0.00019647,2]
[391083664,1760310631797,-379.54,0.00021433,2]
[391083666,1760310631807,-150.0,0.00021533,2]
[391083668,1760310631816,-166.7203198,0.000216,2]
[391084217,1760310643680,-305.59540362,0.000216,2]
[391084224,1760310643742,-27.68427658,0.000216,2]
[391084226,1760310643751,-628.24264325,0.00021917,10]
[391084228,1760310643761,-172.5,0.00022133,2]
[391084230,1760310643770,-150.0,0.000222,2]
[391084232,1760310643780,-195.0,0.00022733,2]
[391084234,1760310643789,-569.31,0.0002322,2]
[391084236,1760310643799,-217.5,0.00023333,2]
[391084238,1760310643808,-204.28177558,0.000237,2]
[391084241,1760310643817,-160.0,0.0002371,2]
[391084243,1760310643827,-240.0,0.00023933,2]
[391084245,1760310643836,-177.90835515,0.000242,2]
[391084247,1760310643846,-300.0,0.00024532,2]
[391084249,1760310643855,-1163.72994944,0.00024532,2]
[391085210,1760310700497,204.51,0.00019679,2]
[391085212,1760310781340,201.91,0.00019658,2]
[391085213,1760310861928,199.34,0.00019732,2]
[391085214,1760310867502,13542.07664663,0.0002739,120]
[391085215,1760310943313,196.8,0.00019631,2]
[391085216,1760311023511,194.3,0.00019635,2]
[391085217,1760311104589,191.82,0.00019639,2]
[391085218,1760311187282,189.38,0.00019629,2]
[391085219,1760311266885,186.97,0.00019627,2]
[391085220,1760311348950,184.59,0.00019628,2]
[391085221,1760311431430,182.24,0.000198,2]
[391085222,1760311511518,260.0,0.0002,60]
[391085223,1760311512596,179.92,0.00019803,2]
[391085225,1760311593601,177.63,0.00019629,2]
[391085227,1760311675194,175.37,0.00019628,2]
[391085228,1760311686311,1291.3,0.00020971,2]
[391085236,1760311757017,197.63,0.00019621,2]
[391085289,1760311837619,195.11,0.00019625,2]
[391085312,1760311838165,-150.0,0.00021346,2]
[391085314,1760311838175,-200.0,0.00021346,2]
[391085316,1760311838184,-390.23,0.00021409,2]
[391085318,1760311838193,-186.21822421,0.00021503,2]
[391085320,1760311838202,-172.5,0.00021946,2]
[391085322,1760311838211,-252.47324276,0.00022546,2]
[391085324,1760311838220,-1000.0,0.00022708,30]
[391085326,1760311838229,-186.424441,0.00022818,2]
[391085328,1760311838239,-402.2877588,0.0002374,2]
[391085330,1760311838249,-160.0,0.00023786,2]
[391085332,1760311838258,-402.2877588,0.00023786,2]
[391085334,1760311838268,-48550.95540886,0.00023786,2]
[391085336,1760311838278,-177.90835514,0.000238,2]
[391085337,1760311838287,-177.90835514,0.00024,2]
[391085339,1760311838296,-1563.23289088,0.00024142,2]
[391085341,1760311838305,-170.40948365,0.00024762,2]
[391085343,1760311838314,-151.0,0.00024762,2]
[391085346,1760311838324,-151.0,0.00024762,2]
[391085347,1760311838333,-171.91385009,0.00024762,2]
[391085349,1760311838342,-300.0,0.00024791,2]
[391085352,1760311838357,-1200.0,0.00024791,2]
[391085355,1760311838370,-666.66666667,0.00024792,2]
[391085357,1760311838379,-666.66666667,0.00024792,2]
[391085359,1760311838389,-666.66666667,0.00024792,2]
[391085361,1760311838399,-314.0,0.00024917,2]
[391085363,1760311838409,-666.66666667,0.00024941,4]
[391085365,1760311838418,-666.66666667,0.00024941,4]
[391085367,1760311838428,-271.496,0.00024999,8]
[391085369,1760311838437,-666.66666667,0.0002509,6]
[391085371,1760311838446,-666.66666667,0.0002509,6]
[391085373,1760311838455,-666.66666667,0.0002509,6]
[391085375,1760311838464,-666.66666667,0.00025239,8]
[391085377,1760311838474,-666.66666667,0.00025239,8]
[391085379,1760311838483,-666.66666667,0.00025239,8]
[391085381,1760311838492,-666.66666667,0.00025388,10]
[391085383,1760311838502,-666.66666667,0.00025388,10]
[391085385,1760311838511,-666.66666667,0.00025388,10]
[391085387,1760311838520,-666.66666667,0.00025388,10]
[391085389,1760311838529,-300.0,0.00025439,20]
[391085391,1760311838538,-300.0,0.00025439,20]
[391085393,1760311838547,-300.0,0.00025439,20]
[391085395,1760311838556,-300.0,0.00025439,20]
[391085397,1760311838565,-300.0,0.00025439,20]
[391085399,1760311838575,-300.0,0.00025439,20]
[391085401,1760311838585,-300.0,0.00025439,20]
[391085403,1760311838594,-300.0,0.00025439,20]
[391085405,1760311838606,-300.0,0.00025439,20]
[391085407,1760311838617,-300.0,0.00025439,20]
[391085409,1760311838627,-300.0,0.00025439,20]
[391085411,1760311838637,-300.0,0.00025439,20]
[391085413,1760311838646,-300.0,0.00025439,20]
[391085415,1760311838659,-300.0,0.00025439,20]
[391085417,1760311838669,-300.0,0.00025439,20]
[391085419,1760311838679,-666.66666667,0.00025537,12]
[391085421,1760311838690,-666.66666667,0.00025537,12]
[391085423,1760311838702,-666.66666667,0.00025537,12]
[391085425,1760311838713,-666.66666667,0.00025686,14]
[391085427,1760311838722,-666.66666667,0.00025686,14]
[391085429,1760311838732,-666.66666667,0.00025686,14]
[391085431,1760311838742,-666.66666667,0.00025836,16]
[391085433,1760311838752,-666.66666667,0.00025836,16]
[391085435,1760311838761,-666.66666667,0.00025836,16]
[391085437,1760311838771,-666.66666667,0.00025836,16]
[391085439,1760311838780,-500.0,0.00025836,16]
[391085441,1760311838790,-500.0,0.00025891,16]
[391085443,1760311838800,-645.54280999,0.00025946,16]
[391085445,1760311838810,-600.0,0.00025947,20]
[391085447,1760311838821,-666.66666667,0.00025985,18]
[391085449,1760311838831,-666.66666667,0.00025985,18]
[391085451,1760311838841,-666.66666667,0.00025985,18]
[391085453,1760311838851,-666.66666667,0.00025985,18]
[391085455,1760311838861,-2328.62750362,0.00026,30]
[391085457,1760311838871,-666.66666667,0.00026134,20]
[391085459,1760311838881,-666.66666667,0.00026134,20]
[391085461,1760311838892,-666.66666667,0.00026134,20]
[391085463,1760311838907,-666.66666667,0.00026134,20]
[391085465,1760311838917,-160.0,0.00026211,2]
[391085467,1760311838928,-630.0,0.00026261,2]
[391085469,1760311838938,-2160.0,0.00026261,2]
[391085471,1760311838949,-411.0,0.00026261,2]
[391085473,1760311838959,-666.66666667,0.00026283,22]
[391085475,1760311838969,-666.66666667,0.00026283,22]
[391085477,1760311838980,-666.66666667,0.00026283,22]
[391085479,1760311838991,-666.66666667,0.00026432,24]
[391085481,1760311839002,-666.66666667,0.00026432,24]
[391085483,1760311839012,-666.66666667,0.00026581,26]
[391085485,1760311839022,-666.66666667,0.00026581,26]
[391085487,1760311839032,-260.0,0.00026759,2]
[391085489,1760311839043,-420.0,0.00026862,2]
[391085491,1760311839053,-754.84,0.00026869,10]
[391085493,1760311839063,-666.66666667,0.00026879,30]
[391085495,1760311839072,-666.66666667,0.00026879,30]
[391085497,1760311839082,-383.916437,0.00027218,2]
[391085499,1760311839091,-600.0,0.00027253,2]